fUSD/lending_fUSD_20240531
["ID","MTS","AMOUNT","RATE_DAILY","PERIOD"]
[328340934,1717191040322,-433.83622735,0.00024,2]
[328340935,1717191040332,-473.22827161,0.00024,2]
[328340936,1717191040342,-5946.13764604,0.00024115,2]
[328340937,1717191040352,-167.74461825,0.0002416,2]
[328340938,1717191040362,-1436.69018126,0.00024204,2]
[328340939,1717191040372,-180.0,0.0002423,2]
[328340940,1717191040382,-151.76,0.00024384,2]
[328340941,1717191040392,-156.93,0.00024384,2]
[328340942,1717191040401,-156.07559753,0.000245,2]
[328340943,1717191040411,-19663.09082442,0.000245,2]
[328340944,1717191040420,-5790.70074321,0.00024593,2]
[328340945,1717191040430,-5000.0,0.00024593,2]
[328340946,1717191040440,-5000.0,0.00024593,2]
[328340947,1717191040449,-5000.0,0.00024593,2]
[328340948,1717191040459,-5000.0,0.00024593,2]
[328340949,1717191040469,-151.0,0.00024593,7]
[328340950,1717191040483,-150.0,0.00024797,10]
[328340951,1717191040493,-151.0,0.00024798,7]
[328340952,1717191040503,-151.0,0.00024798,7]
[328340953,1717191040512,-152.928547,0.00024798,7]
[328340954,1717191040523,-151.0,0.00024798,7]
[328340955,1717191040532,-151.0,0.00024798,7]
[328340956,1717191040543,-153.447692,0.00024798,7]
[328340957,1717191040553,-151.0,0.00024798,7]
[328340958,1717191040565,-151.0,0.00024798,7]
[328340959,1717191040575,-164.999087,0.00024798,7]
[328340960,1717191040585,-151.0,0.00024798,7]
[328340961,1717191040594,-151.0,0.00024798,7]
[328340962,1717191040604,-151.0,0.00024798,7]
[328340963,1717191040618,-151.0,0.00024798,7]
[328340964,1717191040627,-151.0,0.00024798,7]
[328340965,1717191040637,-151.0,0.00024798,7]
[328340966,1717191040646,-151.0,0.00024798,7]
[328340967,1717191040657,-219.874834,0.00024798,7]
[328340968,1717191040666,-151.0,0.00024798,7]
[328340969,1717191040675,-151.0,0.00024798,7]
[328340970,1717191040685,-151.0,0.00024798,7]
[328340971,1717191040694,-151.0,0.00024798,7]
[328340972,1717191040704,-151.0,0.00024798,7]
[328340973,1717191040713,-151.0,0.00024798,7]
[328340974,1717191040723,-151.0,0.00024798,7]
[328340975,1717191040733,-151.0,0.00024798,7]
[328340976,1717191040743,-151.0,0.00024798,7]
[328340977,1717191040752,-151.0,0.00024798,7]
[328340978,1717191040762,-153.511556,0.00024798,7]
[328340979,1717191040771,-151.0,0.00024798,7]
[328340980,1717191040780,-151.0,0.00024798,7]
[328340981,1717191040789,-151.0,0.00024798,7]
[328340982,1717191040799,-157.011782,0.00024798,7]
[328340983,1717191040810,-151.0,0.00024798,7]
[328340984,1717191040819,-151.0,0.00024798,7]
[328340985,1717191040831,-236.48222182,0.00024798,7]
[328340986,1717191040840,-151.0,0.00024798,7]
[328340987,1717191040849,-151.0,0.00024798,7]
[328340988,1717191040858,-290.5915,0.00024798,7]
[328340989,1717191040868,-151.0,0.00024798,7]
[328340990,1717191040878,-188.580352,0.00024798,7]
[328340991,1717191040887,-151.0,0.00024798,7]
[328340992,1717191040896,-165.87244,0.00024798,7]
[328340993,1717191040905,-151.0,0.00024798,7]
[328340994,1717191040915,-151.0,0.00024798,7]
[328340995,1717191040926,-151.0,0.00024798,7]
[328340996,1717191040935,-151.0,0.00024798,7]
[328340997,1717191040945,-151.0,0.00024798,7]
[328340998,1717191040954,-151.0,0.00024798,7]
[328340999,1717191040963,-168.945474,0.00024798,7]
[328341000,1717191040972,-152.046504,0.00024798,7]
[328341001,1717191040983,-274.655629,0.00024798,7]
[328341002,1717191040993,-274.655629,0.00024798,7]
[328341003,1717191041002,-151.0,0.00024798,7]
[328341004,1717191041011,-274.655629,0.00024798,7]
[328341005,1717191041020,-274.655629,0.00024798,7]
[328341006,1717191041029,-151.0,0.00024798,7]
[328341007,1717191041038,-151.0,0.00024798,7]
[328341008,1717191041048,-151.0,0.00024798,7]
[328341009,1717191041057,-151.0,0.00024798,7]
[328341010,1717191041067,-151.0,0.00024798,7]
[328341011,1717191041075,-151.0,0.00024798,7]
[328341012,1717191041084,-151.0,0.00024798,7]
[328341013,1717191041093,-151.0,0.00024798,7]
[328341014,1717191041102,-151.0,0.00024798,7]
[328341015,1717191041112,-151.0,0.00024798,7]
[328341016,1717191041121,-204.845681,0.00024798,7]
[328341017,1717191041131,-204.845681,0.00024798,7]
[328341018,1717191041140,-204.845681,0.00024798,7]
[328341019,1717191041149,-204.845681,0.00024798,7]
[328341020,1717191041158,-290.551098,0.00024798,7]
[328341021,1717191041167,-290.551098,0.00024798,7]
[328341022,1717191041176,-290.551098,0.00024798,7]
[328341023,1717191041186,-290.551098,0.00024798,7]
[328341024,1717191041195,-151.0,0.00024798,7]
[328341025,1717191041204,-168.869256,0.00024798,7]
[328341026,1717191041214,-168.869256,0.00024798,7]
[328341027,1717191041223,-151.0,0.00024798,7]
[328341028,1717191041234,-151.0,0.00024798,7]
[328341029,1717191041242,-151.0,0.00024798,7]
[328341030,1717191041251,-151.0,0.00024798,7]
[328341031,1717191041260,-151.0,0.00024798,7]
[328341032,1717191041269,-151.0,0.00024798,7]
[328341033,1717191041279,-1816.026897,0.00024798,7]
[328341034,1717191041288,-1816.026897,0.00024798,7]
[328341035,1717191041297,-153.883271,0.00024798,7]
[328341036,1717191041307,-151.0,0.00024798,7]
[328341037,1717191041316,-151.0,0.00024798,7]
[328341038,1717191041326,-151.0,0.00024798,7]
[328341039,1717191041335,-151.0,0.00024798,7]
[328341041,1717191041344,-163.44081,0.00024798,7]
[328341043,1717191041353,-169.729643,0.00024798,7]
[328341044,1717191041362,-169.729643,0.00024798,7]
[328341045,1717191041371,-154.247059,0.00024798,7]
[328341046,1717191041380,-74865.44167946,0.00024798,2]
[328341047,1717191041390,-74865.44167946,0.00024798,2]
[328341049,1717191041399,-74865.44167946,0.00024798,2]
[328341052,1717191041408,-74865.44167946,0.00024798,2]
[328341055,1717191041417,-74865.44167946,0.00024798,2]
[328341057,1717191041426,-151.0,0.00024799,7]
[328341060,1717191041436,-151.0,0.00024799,7]
[328341062,1717191041445,-204.845681,0.00024799,7]
[328341064,1717191041454,-204.845681,0.00024799,7]
[328341066,1717191041463,-290.551098,0.00024799,7]
[328341068,1717191041472,-290.551098,0.00024799,7]
[328341070,1717191041486,-7330.88276996,0.00024799,2]
[328341071,1717191041496,-7330.88276988,0.00024799,2]
[328341073,1717191041505,-5136.94310311,0.000249,2]
[328341076,1717191041519,-926.890117,0.000249,2]
[328341078,1717191041530,-719.48276655,0.000249,2]
[328341080,1717191041539,-151.0,0.000249,7]
[328341082,1717191041548,-151.0,0.000249,7]
[328341084,1717191041560,-152.841443,0.000249,7]
[328341086,1717191041570,-151.0,0.000249,7]
[328341088,1717191041579,-151.0,0.000249,7]
[328341090,1717191041589,-274.655629,0.000249,7]
[328341092,1717191041598,-274.655629,0.000249,7]
[328341094,1717191041607,-151.0,0.000249,7]
[328341096,1717191041616,-151.0,0.000249,7]
[328341098,1717191041625,-151.0,0.000249,7]
[328341100,1717191041635,-164.61,0.00024927,2]
[328341102,1717191041644,-284.82077983,0.0002498,2]
[328341104,1717191041655,-1659.99434364,0.0002498,2]
[328341106,1717191041666,-1951.41487653,0.0002498,2]
[328341108,1717191041675,-88.59077983,0.00025,2]
[328341111,1717191041690,-66.98074486,0.00025,2]
[328341113,1717191041699,-155.22259674,0.00025,2]
[328341115,1717191041708,-1274.3184443,0.00025,2]
[328341117,1717191041717,-5946.13764604,0.00025124,2]
[328341119,1717191041728,-1000.0,0.00025205,2]
[328341121,1717191041737,-716.59,0.00025364,2]
[328341123,1717191041747,-150.0,0.00025386,10]
[328341125,1717191041756,-151.0,0.00025387,7]
[328341127,1717191041765,-151.0,0.00025387,7]
[328341129,1717191041774,-151.0,0.00025387,7]
[328341131,1717191041784,-151.0,0.00025387,7]
[328341133,1717191041793,-151.0,0.00025387,7]
[328341135,1717191041803,-151.0,0.00025387,7]
[328341137,1717191041812,-151.0,0.00025387,7]
[328341139,1717191041821,-168.869256,0.00025387,7]
[328341141,1717191041832,-168.869256,0.00025387,7]
[328341143,1717191041842,-151.0,0.00025387,7]
[328341145,1717191041851,-151.0,0.00025387,7]
[328341147,1717191041861,-151.0,0.00025387,7]
[328341149,1717191041871,-151.0,0.00025387,7]
[328341151,1717191041880,-321.22066406,0.00025387,7]
[328341153,1717191041891,-1494.80623294,0.00025387,7]
[328341154,1717191041901,-1055.25608438,0.00025387,7]
[328341155,1717191041912,-760.77081262,0.00025387,7]
[328341156,1717191041921,-191.11,0.0002589,2]
[328341157,1717191041930,-312.65334419,0.000259,9]
[328341158,1717191041942,-687.34665581,0.000259,9]
[328341159,1717191041951,-116.4775471,0.00026079,2]
[328341160,1717191041963,-33.5224529,0.00026079,2]
[328341161,1717191041972,-637.63754714,0.00026134,2]
[328341162,1717191042019,-611.722254,0.0002,2]
[328341163,1717191042028,-611.722254,0.00024593,7]
[328341164,1717191042037,-5308.5000989,0.00026134,2]
[328341165,1717191042046,-151.0,0.00026202,7]
[328341166,1717191042055,-151.0,0.00026202,7]
[328341167,1717191042064,-151.0,0.00026202,7]
[328341168,1717191042073,-74865.44167946,0.00026203,2]
[328341169,1717191042082,-1344.2850125,0.00026225,2]
[328341170,1717191042091,-151.0,0.00026301,7]
[328341171,1717191042100,-151.0,0.00026301,7]
[328341172,1717191042110,-274.655629,0.00026301,7]
[328341173,1717191042119,-274.655629,0.00026301,7]
[328341174,1717191042128,-151.0,0.00026301,7]
[328341175,1717191042138,-151.0,0.00026301,7]
[328341176,1717191042147,-151.0,0.00026301,7]
[328341177,1717191042157,-155.770697,0.00026301,7]
[328341178,1717191042165,-204.845681,0.00026301,7]
[328341179,1717191042175,-204.845681,0.00026301,7]
[328341180,1717191042184,-290.551098,0.00026301,7]
[328341181,1717191042193,-290.551098,0.00026301,7]
[328341182,1717191042203,-13034.94,0.00026301,2]
[328341183,1717191042211,-167.74461825,0.0002642,2]
[328341184,1717191042220,-1436.69018126,0.00026453,2]
[328341185,1717191042229,-372.058638,0.00026575,2]
[328341186,1717191042239,-800.0,0.00026877,2]
[328341187,1717191042248,-151.0,0.00026877,7]
[328341188,1717191042257,-151.0,0.00026923,7]
[328341189,1717191042267,-151.0,0.00026923,7]
[328341190,1717191042276,-151.0,0.00026923,7]
[328341191,1717191042285,-151.0,0.00026923,7]
[328341192,1717191042294,-272.28412,0.00026923,7]
[328341193,1717191042304,-169.729643,0.00026923,7]
[328341194,1717191042313,-169.729643,0.00026923,7]
[328341195,1717191042322,-150.0,0.00026948,10]
[328341196,1717191042331,-5946.13764604,0.00027143,2]
[328341197,1717191042340,-168.869256,0.00027397,7]
[328341198,1717191042349,-168.869256,0.00027397,7]
[328341199,1717191042359,-151.0,0.00027397,7]
[328341200,1717191042368,-154.630307,0.00027397,7]
[328341201,1717191042377,-151.0,0.00027397,7]
[328341202,1717191042386,-151.0,0.00027397,7]
[328341203,1717191042395,-1816.026897,0.00027397,7]
[328341204,1717191042404,-1816.026897,0.00027397,7]
[328341205,1717191042413,-372.058638,0.00027397,2]
[328341206,1717191042422,-4524.12,0.00027397,2]
[328341207,1717191042432,-174.793778,0.00027397,7]
[328341209,1717191042441,-716.59,0.00027628,2]
[328341211,1717191042451,-15821.0,0.000277,2]
[328341213,1717191042460,-21611.72250059,0.00027952,2]
[328341215,1717191042472,-4983.19985431,0.00027952,2]
[328341216,1717191042488,-21031.59728268,0.00027952,2]
[328341220,1717191042536,-569.47384396,0.00018428,2]
[328341223,1717191042547,-583.61181225,0.00018428,2]
[328341251,1717191042826,-1145.12445154,0.00018428,2]
[328341254,1717191042845,-1703.56989225,0.00018428,2]
[328341256,1717191042855,-611.722254,0.0002,2]
[328341258,1717191042865,-4001.78,0.00021168,2]
[328341260,1717191042874,-4001.78,0.00023908,2]
[328341262,1717191042884,-611.722254,0.00024593,7]
[328341276,1717191042992,-5951.81993431,0.00024799,2]
[328341279,1717191043020,-1104.07166347,0.00024799,2]
[328341281,1717191043032,-274.9911721,0.00024799,2]
[328341283,1717191043041,-6756.33041334,0.00027952,2]
[328341309,1717191047502,-1872.82806,0.00014036,2]
[328341310,1717191047515,-1652.06848643,0.00014036,2]
[328341311,1717191047527,-641.61544197,0.00014036,2]
[328341312,1717191047557,-4162.98009707,0.00014036,2]
[328341313,1717191047569,-1288.24683318,0.00014036,2]
[328341320,1717191092084,269.45788904,0.00013893,2]
[328341321,1717191111501,630.34619803,0.00033,120]
[328341322,1717191114894,155.0,0.00013893,10]
[328341323,1717191121199,180.4359283,0.00013893,2]
[328341324,1717191130611,339.17922691,0.00013888,2]
[328341325,1717191132682,170.15497257,0.00013893,10]
[328341326,1717191133677,25447.41238566,0.00013893,2]
[328341327,1717191137086,180.4359283,0.00013893,2]
[328341328,1717191157079,180.4359283,0.00013893,2]
[328341329,1717191181086,180.4359283,0.00013893,2]
[328341330,1717191197094,180.4359283,0.00013893,2]
[328341331,1717191219097,215.45102279,0.00013893,2]
[328341332,1717191245763,40491.5795095,0.000118,2]
[328341333,1717191252316,13106.80311711,0.00011,2]
[328341334,1717191340151,344.0,0.0003487,30]
[328341335,1717191363458,10000.0,0.0003094,30]
[328341336,1717191394239,18186.90754574,0.0001,2]
[328341337,1717191397450,1244807.39184303,0.00013,2]
[328341338,1717191411582,155.0,0.00014,2]
[328341339,1717191414539,10958.18144295,0.00014,2]
[328341340,1717191430817,718.3503353,0.00014,2]
[328341341,1717191434611,158.06112085,0.00014,2]
[328341342,1717191434982,209.77863162,0.0003487,120]
[328341343,1717191440349,168.21493625,0.00014,2]
[328341344,1717191445478,155.0,0.00014,2]
[328341345,1717191447355,155.0,0.00014,2]
[328341346,1717191456232,1065.89322203,0.00014,2]
[328341347,1717191513666,520.23,0.00033151,120]
[328341348,1717191525922,155.0,0.00014,2]
[328341349,1717191526622,3095.99132127,0.00014,2]
[328341351,1717191640334,718.3503353,0.00014,2]
[328341352,1717191769513,718.3503353,0.00014,2]
[328341353,1717191811294,155.0,0.00014,2]
[328341354,1717191813426,162.97578809,0.00014,2]
[328341355,1717191843857,600.23398936,0.00014,2]
[328341356,1717191849150,687.51527312,0.00014,2]
[328341357,1717191849631,155.0,0.00014,2]
[328341358,1717191904037,150.0,0.00014,2]
[328341359,1717191930255,-162.3456247,0.00014003,2]
[328341360,1717191930278,-251.23012888,0.00014003,2]
[328341361,1717191930297,-209.1055224,0.00014004,2]
[328341362,1717191930318,-849.94956074,0.00014005,2]
[328341363,1717192026188,500.0,0.00013868,2]
[328341364,1717192054465,23900.0,0.00013907,2]
[328341365,1717192062363,150.0,0.00013928,2]
[328341366,1717192068790,250.0,0.00013928,2]
[328341367,1717192099309,500.0,0.00013984,2]
[328341368,1717192101284,628.66,0.00012067,2]
[328341369,1717192137747,579.18,0.00013929,2]
[328341370,1717192217900,200.0,0.00013845,2]
[328341376,1717192231743,-446.29332432,0.00014004,2]
[328341377,1717192231753,-533.52024082,0.00014005,2]
[328341378,1717192231763,-1041.04332356,0.00014005,2]
[328341379,1717192231773,-155.23114998,0.00014029,2]
[328341380,1717192231782,-266.29978993,0.00014029,2]
[328341381,1717192231791,-1990.83840171,0.00014031,2]
[328341382,1717192231800,-156.39032605,0.00014032,2]
[328341383,1717192231811,-259.34325549,0.00014032,2]
[328341384,1717192231822,-377.9482928,0.00014032,2]
[328341385,1717192231831,-257.07684942,0.00014032,2]
[328341386,1717192231841,-334.64634711,0.00014032,2]
[328341387,1717192231850,-302.43859261,0.00014032,2]
[328341388,1717192231859,-544.82661455,0.00014032,2]
[328341389,1717192231871,-543.83019264,0.00014032,2]
[328341390,1717192231882,-145.91850164,0.00014032,2]
[328341391,1717192231891,-155.0,0.00014033,2]
[328341392,1717192231900,-157.74546541,0.00014034,2]
[328341393,1717192231913,-571.37149535,0.00014034,2]
[328341394,1717192231925,-2614.77220606,0.00014034,2]
[328341395,1717192231936,-940.79669589,0.00014034,2]
[328341396,1717192231945,-306.89581526,0.00014034,2]
[328341397,1717192231954,-1247.78625394,0.00014034,2]
[328341398,1717192231964,-345.40971035,0.00014035,2]
[328341399,1717192231973,-2539.92,0.00014035,2]
[328341400,1717192231982,-242.44,0.00014035,2]
[328341401,1717192231991,-214.71506822,0.00014152,2]
[328341402,1717192232003,-11.48493178,0.00014152,2]
[328341403,1717192232012,-299.99,0.00014152,2]
[328341404,1717192232021,-358.86,0.00014152,2]
[328341405,1717192232030,-499.99,0.00014152,2]
[328341406,1717192232039,-4166.00640013,0.00014152,2]
[328341407,1717192232051,-6253.55359987,0.00014152,2]
[328341408,1717192232060,-250.0,0.00014162,2]
[328341409,1717192232069,-1710.74,0.00014238,2]
[328341410,1717192232078,-11599.63,0.00014247,2]
[328341411,1717192232087,-494.9226198,0.00014299,2]
[328341412,1717192232096,-757.38,0.000143,2]
[328341413,1717192232105,-628.66,0.00014331,2]
[328341414,1717192232115,-2751.0,0.00014475,2]
[328341415,1717192232124,-1000.0,0.0001459,2]
[328341416,1717192232133,-500.0,0.00014818,2]
[328341417,1717192232142,-500.0,0.00014818,2]
[328341418,1717192232151,-500.0,0.00014818,2]
[328341419,1717192232160,-500.0,0.00014818,2]
[328341420,1717192232170,-500.0,0.00014818,2]
[328341421,1717192232179,-500.0,0.00014818,2]
[328341422,1717192232189,-500.0,0.00014818,2]
[328341423,1717192232198,-500.0,0.00014818,2]
[328341424,1717192232207,-500.0,0.00014818,2]
[328341425,1717192232216,-500.0,0.00014818,2]
[328341426,1717192232225,-500.0,0.00014818,2]
[328341427,1717192232234,-500.0,0.00014818,2]
[328341428,1717192232243,-500.0,0.00014818,2]
[328341430,1717192232252,-500.0,0.00014818,2]
[328341432,1717192232262,-669.0,0.00014818,2]
[328341433,1717192232271,-200.0,0.000149,5]
[328341435,1717192232280,-1044.28261703,0.000149,2]
[328341436,1717192232289,-1167.00579472,0.000149,2]
[328341437,1717192232298,-358.50442804,0.000149,2]
[328341438,1717192232307,-413.97072653,0.000149,2]
[328341439,1717192232316,-516.01159384,0.00014989,2]
[328341440,1717192232325,-151.22,0.0001499,2]
[328341441,1717192232334,-318.20543196,0.00014998,2]
[328341442,1717192232344,-290.82402186,0.00014998,2]
[328341443,1717192232354,-155.39506638,0.00014998,2]
[328341444,1717192232364,-254.20362507,0.00014998,2]
[328341445,1717192232373,-163.69880593,0.00014998,2]
[328341446,1717192232382,-2267.67190198,0.00014999,2]
[328341447,1717192232392,-1031.71806703,0.00014999,2]
[328341448,1717192232401,-40759.31119791,0.00014999,2]
[328341449,1717192232413,-9529.17728646,0.00014999,2]
[328341450,1717192232429,-13150.60685847,0.00014999,2]
[328341451,1717192232440,-854.8607206,0.00014999,2]
[328341452,1717192232452,-2082.54314,0.00014999,2]
[328341453,1717192232463,-10692.42988046,0.00014999,2]
[328341454,1717192232474,-4334.02072546,0.00014999,2]
[328341455,1717192232485,-1083.35584657,0.00014999,2]
[328341456,1717192232497,-713.45,0.00014999,2]
[328341457,1717192232508,-2643.95885393,0.00014999,2]
[328341458,1717192232519,-1056.7830963,0.00014999,2]
[328341459,1717192232530,-655.79695343,0.00014999,2]
[328341460,1717192232540,-483.38441344,0.00014999,2]
[328341461,1717192232552,-7944.83427842,0.00014999,2]
[328341469,1717192238420,-3314.4156,0.00014999,2]
[328341471,1717192238432,-867.8702897,0.00014999,2]
[328341474,1717192238512,-295101.97533887,0.00014999,2]
[328341475,1717192238524,-24874.27443899,0.00014999,2]
[328341476,1717192238535,-7531.70268872,0.00014999,2]
[328341477,1717192238598,-6185.98287592,0.00014999,2]
[328341478,1717192238610,-10131.1716183,0.00014999,2]
[328341479,1717192238621,-5775.04122006,0.00014999,2]
[328341480,1717192238771,-785.92464769,0.00014999,2]
[328341481,1717192238782,-669.42707453,0.00014999,2]
[328341482,1717192238794,-10480.01833076,0.00014999,2]
[328341483,1717192238806,-4390.74140122,0.00014999,2]
[328341484,1717192238818,-2000.82078,0.00014999,2]
[328341485,1717192238832,-221883.82204098,0.00014999,2]
[328341486,1717192238842,-155.48523332,0.00015,2]
[328341487,1717192238851,-620.00333459,0.00015,2]
[328341488,1717192238860,-325.46904445,0.00015,2]
[328341489,1717192238869,-258.0937081,0.00015,2]
[328341490,1717192238879,-8096.17995186,0.00015,2]
[328341491,1717192238888,-91980.33638694,0.00015,2]
[328341493,1717192238896,-300.0,0.00015354,2]
[328341495,1717192238905,-156.1,0.00015563,2]
[328341497,1717192238914,-156.1,0.0001576,2]
[328341499,1717192238923,-156.1,0.00015958,2]
[328341500,1717192238932,-236.02784124,0.00016115,2]
[328341502,1717192238941,-4619.10356864,0.00016115,2]
[328341504,1717192238950,-5720.37,0.00016116,2]
[328341506,1717192238959,-1000.0,0.00016414,2]
[328341508,1717192238969,-3544.25,0.00016438,2]
[328341510,1717192238979,-1886.77782089,0.000165,2]
[328341512,1717192238988,-628.66,0.00016594,2]
[328341514,1717192238998,-579.18,0.00016668,2]
[328341516,1717192239006,-179.4,0.00016712,2]
[328341518,1717192239016,-300.0,0.00016724,2]
[328341520,1717192239025,-1236.74291656,0.00017225,2]
[328341522,1717192239035,-168.64898794,0.00017258,2]
[328341524,1717192239044,-201.48986089,0.00017258,2]
[328341526,1717192239054,-463.57340608,0.00017258,2]
[328341528,1717192239063,-210.83442918,0.00017259,2]
[328341530,1717192239073,-306.92224248,0.00017259,2]
[328341532,1717192239082,-1044.28261699,0.00017514,2]
[328341533,1717192239092,-648.73762703,0.00018,2]
[328341534,1717192239101,-1110.65000908,0.00018,2]
[328341535,1717192239111,-1000.0,0.00018238,2]
[328341536,1717192239120,-166.74,0.00018726,2]
[328341537,1717192239130,-628.66,0.00018858,2]
[328341538,1717192239139,-155.0,0.00019,2]
[328341539,1717192239148,-411.07546451,0.00019,2]
[328341540,1717192239158,-500.0,0.00019178,2]
[328341541,1717192239168,-319.74754324,0.00019178,2]
[328341542,1717192239177,-500.0,0.00019178,2]
[328341543,1717192239186,-605.08598873,0.00019178,2]
[328341544,1717192239195,-477.25256458,0.00019178,2]
[328341545,1717192239204,-500.0,0.00019178,2]
[328341546,1717192239213,-192.99907347,0.00019178,2]
[328341547,1717192239222,-500.0,0.00019178,2]
[328341548,1717192239231,-500.0,0.00019178,2]
[328341549,1717192239240,-500.0,0.00019178,2]
[328341550,1717192239250,-489.43162165,0.00019178,2]
[328341551,1717192239259,-500.0,0.00019178,2]
[328341552,1717192239268,-500.0,0.00019178,2]
[328341553,1717192239277,-500.0,0.00019178,2]
[328341554,1717192239287,-500.0,0.00019178,2]
[328341555,1717192239296,-287.42872969,0.00019178,2]
[328341556,1717192239306,-500.0,0.00019178,2]
[328341557,1717192239315,-500.0,0.00019178,2]
[328341558,1717192239323,-500.0,0.00019178,2]
[328341559,1717192239333,-500.0,0.00019178,2]
[328341560,1717192239342,-500.0,0.00019178,2]
[328341561,1717192239352,-500.0,0.00019178,2]
[328341562,1717192239361,-500.0,0.00019178,2]
[328341563,1717192239370,-500.0,0.00019178,2]
[328341564,1717192239380,-500.0,0.00019178,2]
[328341565,1717192239389,-500.0,0.00019178,2]
[328341566,1717192239398,-500.0,0.00019178,2]
[328341567,1717192239407,-1000.0,0.00019178,2]
[328341568,1717192239416,-1000.0,0.00019178,2]
[328341569,1717192239425,-1000.0,0.00019178,2]
[328341570,1717192239434,-1000.0,0.00019178,2]
[328341571,1717192239444,-1000.0,0.00019178,2]
[328341572,1717192239453,-1000.0,0.00019178,2]
[328341573,1717192239462,-1000.0,0.00019178,2]
[328341574,1717192239471,-1000.0,0.00019178,2]
[328341575,1717192239480,-1000.0,0.00019178,2]
[328341576,1717192239490,-1000.0,0.00019178,2]
[328341577,1717192239499,-1000.0,0.00019178,2]
[328341578,1717192239508,-1000.0,0.00019178,2]
[328341579,1717192239517,-267.0,0.00019178,2]
[328341580,1717192239526,-413.97072652,0.00019205,2]
[328341581,1717192239536,-535.41,0.00019256,2]
[328341582,1717192239545,-1167.00579471,0.00019297,2]
[328341583,1717192239556,-579.18,0.00019408,2]
[328341584,1717192239565,-204.26000578,0.0001945,2]
[328341585,1717192239575,-242.13941498,0.0001945,2]
[328341586,1717192239584,-157.14302958,0.0001945,2]
[328341587,1717192239593,-220.72675912,0.0001945,2]
[328341588,1717192239602,-236.1339612,0.0001945,2]
[328341589,1717192239611,-229.72573414,0.00019451,2]
[328341590,1717192239620,-156.14040432,0.00019451,2]
[328341591,1717192239629,-156.01992126,0.00019451,2]
[328341592,1717192239638,-250.12031156,0.00019451,2]
[328341593,1717192239647,-155.0,0.00019451,2]
[328341594,1717192239657,-1710.74,0.00019933,2]
[328341595,1717192239666,-864.85973658,0.0002,2]
[328341596,1717192239675,-158.77642645,0.0002,2]
[328341597,1717192239685,-6250.33014992,0.0002,2]
[328341598,1717192239695,-338.57782782,0.0002,2]
[328341599,1717192239704,-155.0,0.0002,2]
[328341600,1717192239714,-155.9705427,0.0002,2]
[328341601,1717192239723,-155.0,0.0002,2]
[328341602,1717192239733,-155.0,0.0002,2]
[328341603,1717192239742,-155.0,0.0002,2]
[328341604,1717192239751,-1776.83731686,0.0002,2]
[328341605,1717192239760,-1265.97229304,0.0002,2]
[328341606,1717192239769,-1761.06242246,0.0002,2]
[328341607,1717192239779,-4943.8787718,0.0002,2]
[328341608,1717192239788,-510.21195869,0.0002,2]
[328341609,1717192239797,-682.1574284,0.0002,2]
[328341610,1717192239806,-1000.0,0.00020062,2]
[328341611,1717192239816,-226.49538654,0.000201,2]
[328341612,1717192239826,-1044.28261699,0.00020129,2]
[328341613,1717192239836,-535.41,0.00020219,2]
[328341614,1717192239845,-1151.59608884,0.00021,2]
[328341615,1717192239855,-297.64691,0.00021096,2]
[328341616,1717192239864,-628.66,0.00021122,2]
[328341617,1717192239873,-535.41,0.00021182,2]
[328341618,1717192239882,-166.74,0.00021847,2]
[328341619,1717192239891,-1000.0,0.00021886,2]